[Event "Early-Titled-Tuesday-Blitz-March-19-2024"]
[Site "Chess.com"]
[Date "2024.03.19"]
[Round "6"]
[White "awesomevishesh"]
[Black "Aleksandar-Topalov"]
[Result "1-0"]
[WhiteElo "2604"]
[BlackElo "2272"]
[TimeControl "180+1"]
[EndTime "9:06:49 PDT"]
[Termination "awesomevishesh won by resignation"]

1. d4 {[%clk 0:02:58.6]} 1... Nf6 {[%clk 0:02:57.4]} 2. Nf3 {[%clk 0:02:57.8]}
2... g6 {[%clk 0:02:55.8]} 3. g3 {[%clk 0:02:54.9]} 3... Bg7 {[%clk 0:02:55.9]}
4. Bg2 {[%clk 0:02:55.6]} 4... O-O {[%clk 0:02:55.9]} 5. O-O {[%clk 0:02:56.5]}
5... d6 {[%clk 0:02:50.5]} 6. c4 {[%clk 0:02:56.4]} 6... Nbd7 {[%clk 0:02:48.2]}
7. Nc3 {[%clk 0:02:56.2]} 7... e5 {[%clk 0:02:47.9]} 8. e4 {[%clk 0:02:56.7]}
8... exd4 {[%clk 0:02:41.7]} 9. Nxd4 {[%clk 0:02:56.6]} 9... Re8 {[%clk
0:02:42.1]} 10. h3 {[%clk 0:02:55.3]} 10... Nc5 {[%clk 0:02:42]} 11. Re1 {[%clk
0:02:55.2]} 11... a5 {[%clk 0:02:41.7]} 12. Ndb5 {[%clk 0:02:49.9]} 12... Be6
{[%clk 0:02:26.8]} 13. Bf1 {[%clk 0:02:33.5]} 13... Bd7 {[%clk 0:02:17.1]} 14.
Qc2 {[%clk 0:02:25.2]} 14... Bc6 {[%clk 0:02:13.3]} 15. Bg2 {[%clk 0:02:21.8]}
15... Nfd7 {[%clk 0:01:54.3]} 16. Be3 {[%clk 0:02:14.5]} 16... Nb6 {[%clk
0:01:40.9]} 17. Rad1 {[%clk 0:02:10.7]} 17... Qe7 {[%clk 0:01:33.5]} 18. Bxc5
{[%clk 0:01:48.9]} 18... dxc5 {[%clk 0:01:30.2]} 19. b3 {[%clk 0:01:40.5]} 19...
a4 {[%clk 0:01:21]} 20. Kh2 {[%clk 0:01:30.1]} 20... axb3 {[%clk 0:01:20.2]} 21.
axb3 {[%clk 0:01:30.1]} 21... h5 {[%clk 0:01:15]} 22. Nd5 {[%clk 0:01:22.6]}
22... Bxd5 {[%clk 0:01:11]} 23. exd5 {[%clk 0:01:07.8]} 23... Qxe1 {[%clk
0:01:10]} 24. Rxe1 {[%clk 0:01:07.9]} 24... Rxe1 {[%clk 0:01:09.9]} 25. Nxc7
{[%clk 0:01:07.3]} 25... Rd8 {[%clk 0:01:02.4]} 26. Qd2 {[%clk 0:01:01.3]} 26...
Re7 {[%clk 0:00:58.1]} 27. Nb5 {[%clk 0:00:59.3]} 27... h4 {[%clk 0:00:52.2]}
28. Qg5 {[%clk 0:00:52.4]} 28... hxg3+ {[%clk 0:00:51.2]} 29. fxg3 {[%clk
0:00:52.5]} 29... Rdd7 {[%clk 0:00:46.1]} 30. h4 {[%clk 0:00:33.1]} 30... Be5
{[%clk 0:00:43.2]} 31. h5 {[%clk 0:00:31.9]} 31... Kg7 {[%clk 0:00:42.4]} 32.
Bh3 {[%clk 0:00:28.3]} 32... Nxd5 {[%clk 0:00:14.2]} 33. Bxd7 {[%clk 0:00:24.5]}
33... Rxd7 {[%clk 0:00:13.8]} 34. Qxe5+ {[%clk 0:00:23.8]} 1-0

[Event "Early-Titled-Tuesday-Blitz-March-19-2024"]
[Site "Chess.com"]
[Date "2024.03.19"]
[Round "6"]
[White "Danny_Billiards"]
[Black "DrCeltic"]
[Result "1/2-1/2"]
[WhiteElo "2758"]
[BlackElo "2580"]
[TimeControl "180+1"]
[EndTime "9:06:50 PDT"]
[Termination "Game drawn by repetition"]

1. d4 {[%clk 0:03:00.9]} 1... Nf6 {[%clk 0:02:59.8]} 2. Nc3 {[%clk 0:03:01.2]}
2... d5 {[%clk 0:02:59.5]} 3. Bf4 {[%clk 0:03:00.4]} 3... e6 {[%clk 0:02:59.9]}
4. Nb5 {[%clk 0:03:00.4]} 4... Bd6 {[%clk 0:03:00.4]} 5. Nxd6+ {[%clk
0:03:00.2]} 5... cxd6 {[%clk 0:03:01.3]} 6. e3 {[%clk 0:03:00.4]} 6... Nc6
{[%clk 0:03:01.7]} 7. Nf3 {[%clk 0:03:00.3]} 7... O-O {[%clk 0:03:01.7]} 8. h3
{[%clk 0:03:00.4]} 8... Re8 {[%clk 0:03:01.6]} 9. c3 {[%clk 0:03:00.6]} 9... e5
{[%clk 0:03:01.8]} 10. Bh2 {[%clk 0:03:00.9]} 10... e4 {[%clk 0:02:55.7]} 11.
Nd2 {[%clk 0:03:00.1]} 11... Bf5 {[%clk 0:02:49.6]} 12. Be2 {[%clk 0:02:40.8]}
12... Qd7 {[%clk 0:02:45.7]} 13. g4 {[%clk 0:02:35.2]} 13... Bg6 {[%clk
0:02:36.3]} 14. g5 {[%clk 0:02:22.2]} 14... Qxh3 {[%clk 0:02:21.4]} 15. Bf1
{[%clk 0:02:21.7]} 15... Qe6 {[%clk 0:02:17.2]} 16. gxf6 {[%clk 0:02:19.6]}
16... Qxf6 {[%clk 0:02:18.1]} 17. Qb3 {[%clk 0:02:16.9]} 17... Ne7 {[%clk
0:02:10.3]} 18. Bh3 {[%clk 0:02:06.2]} 18... Bh5 {[%clk 0:01:53]} 19. Bg3 {[%clk
0:01:58.2]} 19... Nf5 {[%clk 0:01:38.1]} 20. Qxd5 {[%clk 0:01:31.7]} 20... Nxg3
{[%clk 0:01:16.9]} 21. fxg3 {[%clk 0:01:32.6]} 21... Bf3 {[%clk 0:01:14.1]} 22.
Rh2 {[%clk 0:01:32.6]} 22... Qh6 {[%clk 0:01:09.4]} 23. Kf2 {[%clk 0:01:31.8]}
23... Re6 {[%clk 0:01:04.5]} 24. Kg1 {[%clk 0:00:59.5]} 24... Qxe3+ {[%clk
0:00:51.9]} 25. Rf2 {[%clk 0:00:59.6]} 25... Rh6 {[%clk 0:00:36]} 26. Nxf3
{[%clk 0:00:41.9]} 26... Rxh3 {[%clk 0:00:31.6]} 27. Ne1 {[%clk 0:00:24.9]}
27... Qxg3+ {[%clk 0:00:22.3]} 28. Rg2 {[%clk 0:00:21.7]} 28... Qe3+ {[%clk
0:00:20.1]} 29. Rf2 {[%clk 0:00:20.5]} 29... Qg3+ {[%clk 0:00:18.9]} 30. Rg2
{[%clk 0:00:11.7]} 30... Qe3+ {[%clk 0:00:17.5]} 31. Rf2 {[%clk 0:00:12.1]}
31... Qg3+ {[%clk 0:00:17]} 1/2-1/2

[Event "Early-Titled-Tuesday-Blitz-March-19-2024"]
[Site "Chess.com"]
[Date "2024.03.19"]
[Round "6"]
[White "KnightmareJoker"]
[Black "ninguno46"]
[Result "0-1"]
[WhiteElo "2302"]
[BlackElo "2540"]
[TimeControl "180+1"]
[EndTime "9:06:52 PDT"]
[Termination "ninguno46 won by resignation"]

1. e4 {[%clk 0:03:00.9]} 1... c5 {[%clk 0:02:59.1]} 2. Nf3 {[%clk 0:03:01.4]}
2... Nc6 {[%clk 0:02:58.5]} 3. d4 {[%clk 0:03:01.8]} 3... cxd4 {[%clk
0:02:58.6]} 4. Nxd4 {[%clk 0:03:02.7]} 4... g6 {[%clk 0:02:58.2]} 5. Be2 {[%clk
0:03:01.6]} 5... Bg7 {[%clk 0:02:57.3]} 6. Nb3 {[%clk 0:03:02.3]} 6... d6 {[%clk
0:02:55.4]} 7. Nc3 {[%clk 0:03:01.6]} 7... Nf6 {[%clk 0:02:53.6]} 8. O-O {[%clk
0:03:01.6]} 8... O-O {[%clk 0:02:52.6]} 9. Re1 {[%clk 0:03:02]} 9... a5 {[%clk
0:02:51]} 10. a4 {[%clk 0:03:01.7]} 10... Be6 {[%clk 0:02:50.1]} 11. Bf1 {[%clk
0:03:02.4]} 11... Nb4 {[%clk 0:02:49.5]} 12. Nd4 {[%clk 0:02:52.7]} 12... Bg4
{[%clk 0:02:48.2]} 13. f3 {[%clk 0:02:51.2]} 13... Bd7 {[%clk 0:02:47.7]} 14.
Bg5 {[%clk 0:02:47.5]} 14... Rc8 {[%clk 0:02:46]} 15. Kh1 {[%clk 0:02:37.2]}
15... Nh5 {[%clk 0:02:29.7]} 16. Rc1 {[%clk 0:02:02.8]} 16... Re8 {[%clk
0:02:23.7]} 17. Ndb5 {[%clk 0:01:55.7]} 17... Rc5 {[%clk 0:02:21.3]} 18. Nxd6
{[%clk 0:01:52.2]} 18... Rxg5 {[%clk 0:02:18.4]} 19. Nxe8 {[%clk 0:01:48.5]}
19... Qxe8 {[%clk 0:02:17.5]} 20. Nd5 {[%clk 0:01:32]} 20... e6 {[%clk
0:02:02.6]} 21. Nxb4 {[%clk 0:01:29.7]} 21... axb4 {[%clk 0:02:02.2]} 22. b3
{[%clk 0:01:30.1]} 22... Bc3 {[%clk 0:01:59.3]} 23. Re3 {[%clk 0:01:23.7]} 23...
Rc5 {[%clk 0:01:55.9]} 24. Rd3 {[%clk 0:01:13.6]} 24... Nf6 {[%clk 0:01:50.7]}
25. Qe2 {[%clk 0:01:03]} 25... e5 {[%clk 0:01:46.8]} 26. Rcd1 {[%clk 0:01:02.7]}
26... Kg7 {[%clk 0:01:44.7]} 27. Rd6 {[%clk 0:01:01.1]} 27... Qe7 {[%clk
0:01:40.9]} 28. Qd3 {[%clk 0:00:59.5]} 28... Be6 {[%clk 0:01:39.7]} 29. Rd8
{[%clk 0:00:56.7]} 29... Rc7 {[%clk 0:01:31.7]} 30. Rd6 {[%clk 0:00:42.3]} 30...
Bd4 {[%clk 0:01:25.5]} 31. Rxd4 {[%clk 0:00:39.4]} 31... exd4 {[%clk 0:01:25.1]}
32. Qxd4 {[%clk 0:00:40.3]} 32... Rxc2 {[%clk 0:01:24]} 33. e5 {[%clk
0:00:37.8]} 33... Nd5 {[%clk 0:01:22.2]} 34. Bc4 {[%clk 0:00:34.6]} 34... Nc3
{[%clk 0:01:21.7]} 35. Bxe6 {[%clk 0:00:31]} 35... Qxe6 {[%clk 0:01:13.9]} 36.
Re1 {[%clk 0:00:26.3]} 36... h5 {[%clk 0:01:07.5]} 37. f4 {[%clk 0:00:24.8]}
37... h4 {[%clk 0:01:03.8]} 38. h3 {[%clk 0:00:21.3]} 38... Nd5 {[%clk
0:01:00.2]} 39. Rf1 {[%clk 0:00:16.9]} 39... Ne7 {[%clk 0:00:59.5]} 40. Qe4
{[%clk 0:00:14.7]} 40... Rc3 {[%clk 0:00:57.3]} 41. f5 {[%clk 0:00:13.8]} 41...
Nxf5 {[%clk 0:00:56.9]} 42. Rf3 {[%clk 0:00:11.8]} 42... Ng3+ {[%clk 0:00:55.8]}
43. Rxg3 {[%clk 0:00:12.3]} 43... hxg3 {[%clk 0:00:55.5]} 44. Qe1 {[%clk
0:00:09.9]} 44... Qc6 {[%clk 0:00:53.9]} 45. e6 {[%clk 0:00:06.2]} 45... Rc1
{[%clk 0:00:54]} 0-1

[Event "Early-Titled-Tuesday-Blitz-March-19-2024"]
[Site "Chess.com"]
[Date "2024.03.19"]
[Round "6"]
[White "Boorchess"]
[Black "Boxerandchessplayer"]
[Result "1-0"]
[WhiteElo "2550"]
[BlackElo "2210"]
[TimeControl "180+1"]
[EndTime "9:06:55 PDT"]
[Termination "Boorchess won by resignation"]

1. d4 {[%clk 0:03:00.9]} 1... d5 {[%clk 0:02:57]} 2. c4 {[%clk 0:02:57.8]} 2...
e6 {[%clk 0:02:54.8]} 3. Nf3 {[%clk 0:02:57.3]} 3... c6 {[%clk 0:02:54.2]} 4.
Qc2 {[%clk 0:02:56.9]} 4... Nf6 {[%clk 0:02:51.6]} 5. g3 {[%clk 0:02:56.2]} 5...
dxc4 {[%clk 0:02:48.2]} 6. Qxc4 {[%clk 0:02:55.5]} 6... b5 {[%clk 0:02:46.7]} 7.
Qc2 {[%clk 0:02:55.6]} 7... Bb7 {[%clk 0:02:46.6]} 8. Bg2 {[%clk 0:02:55.2]}
8... Nbd7 {[%clk 0:02:47]} 9. O-O {[%clk 0:02:55.2]} 9... c5 {[%clk 0:02:46.3]}
10. dxc5 {[%clk 0:02:53.5]} 10... Bxc5 {[%clk 0:02:47.2]} 11. Nc3 {[%clk
0:02:52.3]} 11... Qb6 {[%clk 0:02:41.8]} 12. a4 {[%clk 0:02:51.8]} 12... b4
{[%clk 0:02:40.8]} 13. a5 {[%clk 0:02:50.8]} 13... Qa6 {[%clk 0:02:37.2]} 14.
Na4 {[%clk 0:02:48]} 14... Be7 {[%clk 0:02:36.8]} 15. Be3 {[%clk 0:02:43.4]}
15... O-O {[%clk 0:02:34.6]} 16. Rfd1 {[%clk 0:02:39.1]} 16... Rfc8 {[%clk
0:02:30.2]} 17. Qd2 {[%clk 0:02:37.6]} 17... h6 {[%clk 0:02:19.5]} 18. Nd4
{[%clk 0:02:24.9]} 18... Bxg2 {[%clk 0:02:17.4]} 19. Kxg2 {[%clk 0:02:25.2]}
19... Nd5 {[%clk 0:02:05.4]} 20. Nb3 {[%clk 0:02:13.1]} 20... Nxe3+ {[%clk
0:01:50.3]} 21. Qxe3 {[%clk 0:02:12.6]} 21... Bf6 {[%clk 0:01:28.6]} 22. Qd3
{[%clk 0:02:11.5]} 22... Qxd3 {[%clk 0:01:27.4]} 23. Rxd3 {[%clk 0:02:11]} 23...
Ne5 {[%clk 0:01:27.6]} 24. Rd4 {[%clk 0:02:02.1]} 24... Nc6 {[%clk 0:01:22.8]}
25. Rc4 {[%clk 0:01:58.8]} 25... Rab8 {[%clk 0:01:19.6]} 26. Rac1 {[%clk
0:01:56.9]} 26... Ne7 {[%clk 0:01:20.1]} 27. e4 {[%clk 0:01:47.2]} 27... Kf8
{[%clk 0:00:51.1]} 28. f4 {[%clk 0:01:46.3]} 28... e5 {[%clk 0:00:45.9]} 29. f5
{[%clk 0:01:46.4]} 29... Bg5 {[%clk 0:00:45.9]} 30. R1c2 {[%clk 0:01:43.5]}
30... h5 {[%clk 0:00:43.6]} 31. Kf3 {[%clk 0:01:42.1]} 31... Ke8 {[%clk
0:00:42.4]} 32. h3 {[%clk 0:01:41.3]} 32... g6 {[%clk 0:00:37.3]} 33. g4 {[%clk
0:01:40.8]} 33... gxf5 {[%clk 0:00:36.2]} 34. exf5 {[%clk 0:01:40.6]} 34... Rxc4
{[%clk 0:00:27]} 35. Rxc4 {[%clk 0:01:40.3]} 35... Nd5 {[%clk 0:00:26.8]} 36.
gxh5 {[%clk 0:01:33.2]} 36... Nf6 {[%clk 0:00:25.8]} 37. Nac5 {[%clk 0:01:28.4]}
37... Nxh5 {[%clk 0:00:20.1]} 38. Kg4 {[%clk 0:01:28.1]} 38... f6 {[%clk
0:00:16.6]} 39. Kxh5 {[%clk 0:01:27.9]} 39... Ke7 {[%clk 0:00:12.8]} 40. Kg4
{[%clk 0:01:27.8]} 40... Rh8 {[%clk 0:00:12.4]} 41. Ne4 {[%clk 0:01:24.6]} 41...
Rh4+ {[%clk 0:00:08.3]} 42. Kg3 {[%clk 0:01:24.7]} 42... Rf4 {[%clk 0:00:07.6]}
43. Rc7+ {[%clk 0:01:20.1]} 43... Kd8 {[%clk 0:00:07.8]} 44. Nxg5 {[%clk
0:01:16.5]} 44... Rxf5 {[%clk 0:00:05.8]} 45. Ne6+ {[%clk 0:01:15.6]} 45... Ke8
{[%clk 0:00:05.9]} 46. Rxa7 {[%clk 0:01:12]} 46... Rf1 {[%clk 0:00:05.5]} 47.
Nec5 {[%clk 0:01:08.4]} 47... Rg1+ {[%clk 0:00:04.4]} 48. Kf2 {[%clk 0:01:08.5]}
48... Rb1 {[%clk 0:00:03.6]} 49. a6 {[%clk 0:01:07.9]} 49... Rxb2+ {[%clk
0:00:03.4]} 50. Kf3 {[%clk 0:01:07.9]} 50... f5 {[%clk 0:00:03.1]} 51. Ra8+
{[%clk 0:01:08.2]} 51... Ke7 {[%clk 0:00:03.1]} 52. a7 {[%clk 0:01:08.1]} 52...
e4+ {[%clk 0:00:03]} 53. Ke3 {[%clk 0:01:08]} 53... Rh2 {[%clk 0:00:03.1]} 54.
Rh8 {[%clk 0:01:06.3]} 54... f4+ {[%clk 0:00:02.6]} 1-0

[Event "Early-Titled-Tuesday-Blitz-March-19-2024"]
[Site "Chess.com"]
[Date "2024.03.19"]
[Round "6"]
[White "malakismayil"]
[Black "GothamChess"]
[Result "1-0"]
[WhiteElo "2534"]
[BlackElo "2690"]
[TimeControl "180+1"]
[EndTime "9:06:56 PDT"]
[Termination "malakismayil won by resignation"]

1. e4 {[%clk 0:03:00.9]} 1... d5 {[%clk 0:02:59.4]} 2. exd5 {[%clk 0:03:00.8]}
2... Qxd5 {[%clk 0:03:00.3]} 3. Nc3 {[%clk 0:03:00.9]} 3... Qa5 {[%clk
0:03:01.1]} 4. Bc4 {[%clk 0:02:58.5]} 4... Nf6 {[%clk 0:03:01.2]} 5. Nf3 {[%clk
0:02:58]} 5... Bf5 {[%clk 0:03:01.4]} 6. d3 {[%clk 0:02:57.4]} 6... e6 {[%clk
0:03:01.1]} 7. Bd2 {[%clk 0:02:57.9]} 7... c6 {[%clk 0:03:01.3]} 8. Qe2 {[%clk
0:02:56.7]} 8... Qc7 {[%clk 0:02:47.8]} 9. h3 {[%clk 0:02:54.3]} 9... b5 {[%clk
0:02:45.6]} 10. Bb3 {[%clk 0:02:53.8]} 10... Be7 {[%clk 0:02:37.4]} 11. Nd4
{[%clk 0:02:53.1]} 11... Bg6 {[%clk 0:02:36.1]} 12. O-O {[%clk 0:02:39.7]} 12...
O-O {[%clk 0:02:27.2]} 13. Bxe6 {[%clk 0:02:35.6]} 13... fxe6 {[%clk 0:02:25.4]}
14. Nxe6 {[%clk 0:02:36.5]} 14... Qd7 {[%clk 0:02:24.8]} 15. Nxf8 {[%clk
0:02:36.1]} 15... Bxf8 {[%clk 0:02:24.9]} 16. Bg5 {[%clk 0:02:21.3]} 16... Qf5
{[%clk 0:02:13.4]} 17. Bxf6 {[%clk 0:02:00.9]} 17... Qxf6 {[%clk 0:02:14.3]} 18.
Ne4 {[%clk 0:02:01.2]} 18... Qxb2 {[%clk 0:02:10.9]} 19. f4 {[%clk 0:01:53.1]}
19... Nd7 {[%clk 0:02:01.3]} 20. f5 {[%clk 0:01:52.8]} 20... Bf7 {[%clk
0:02:01.7]} 21. f6 {[%clk 0:01:46.8]} 21... Nxf6 {[%clk 0:01:51.2]} 22. Nxf6+
{[%clk 0:01:45.8]} 22... gxf6 {[%clk 0:01:51.4]} 23. Rae1 {[%clk 0:01:39.3]}
23... Qd4+ {[%clk 0:01:40.7]} 24. Kh1 {[%clk 0:01:38.7]} 24... Re8 {[%clk
0:01:37.1]} 25. Qf3 {[%clk 0:01:33.3]} 25... Rxe1 {[%clk 0:01:30]} 26. Rxe1
{[%clk 0:01:34.2]} 26... Qh4 {[%clk 0:00:52.7]} 27. Re4 {[%clk 0:01:21.4]} 27...
Qh6 {[%clk 0:00:44.1]} 28. Rg4+ {[%clk 0:01:20.3]} 28... Kh8 {[%clk 0:00:43.6]}
29. Qxc6 {[%clk 0:01:20]} 29... Qc1+ {[%clk 0:00:37.2]} 30. Kh2 {[%clk
0:01:19.6]} 30... Qb2 {[%clk 0:00:31.1]} 31. d4 {[%clk 0:00:46.4]} 31... Bg7
{[%clk 0:00:20.7]} 32. Qa8+ {[%clk 0:00:22.1]} 32... Bg8 {[%clk 0:00:20.4]} 33.
Qxa7 {[%clk 0:00:22.7]} 33... Bh6 {[%clk 0:00:15]} 34. Qe7 {[%clk 0:00:17.6]}
34... Bg5 {[%clk 0:00:08.4]} 35. Rxg5 {[%clk 0:00:17.1]} 1-0

[Event "Early-Titled-Tuesday-Blitz-March-19-2024"]
[Site "Chess.com"]
[Date "2024.03.19"]
[Round "6"]
[White "Nuvas"]
[Black "Shahdad2007"]
[Result "0-1"]
[WhiteElo "2807"]
[BlackElo "2609"]
[TimeControl "180+1"]
[EndTime "9:07:02 PDT"]
[Termination "Shahdad2007 won on time"]

1. d4 {[%clk 0:03:00.3]} 1... Nf6 {[%clk 0:03:00.9]} 2. c4 {[%clk 0:03:00.6]}
2... g6 {[%clk 0:03:01.5]} 3. Nc3 {[%clk 0:03:01.3]} 3... d5 {[%clk 0:03:01.4]}
4. Nf3 {[%clk 0:03:01.9]} 4... Bg7 {[%clk 0:03:01.4]} 5. Bg5 {[%clk 0:03:02.7]}
5... Ne4 {[%clk 0:03:01.8]} 6. Bf4 {[%clk 0:03:03.5]} 6... Nxc3 {[%clk
0:02:56.3]} 7. bxc3 {[%clk 0:03:03.8]} 7... dxc4 {[%clk 0:02:56.8]} 8. e3 {[%clk
0:03:04.2]} 8... b5 {[%clk 0:02:49]} 9. a4 {[%clk 0:02:55.6]} 9... c6 {[%clk
0:02:48.8]} 10. Qb1 {[%clk 0:02:47.1]} 10... Qb6 {[%clk 0:02:43.2]} 11. axb5
{[%clk 0:02:42.4]} 11... cxb5 {[%clk 0:02:43.2]} 12. Bxc4 {[%clk 0:02:41]} 12...
Bd7 {[%clk 0:02:25]} 13. Bd5 {[%clk 0:02:19.1]} 13... Nc6 {[%clk 0:02:23]} 14.
c4 {[%clk 0:02:13.8]} 14... b4 {[%clk 0:02:21]} 15. O-O {[%clk 0:02:05.2]} 15...
O-O {[%clk 0:02:20.6]} 16. c5 {[%clk 0:02:05.4]} 16... Qb5 {[%clk 0:02:20.6]}
17. Rc1 {[%clk 0:02:05.1]} 17... a5 {[%clk 0:02:19.4]} 18. Bc4 {[%clk 0:02:01]}
18... Qb7 {[%clk 0:02:17.8]} 19. d5 {[%clk 0:02:01.4]} 19... Nd8 {[%clk
0:02:12.9]} 20. c6 {[%clk 0:02:01.2]} 20... Nxc6 {[%clk 0:02:13.2]} 21. dxc6
{[%clk 0:02:01.5]} 21... Bxc6 {[%clk 0:02:14.1]} 22. Qa2 {[%clk 0:01:01.4]}
22... a4 {[%clk 0:01:43.8]} 23. Rab1 {[%clk 0:00:54.4]} 23... b3 {[%clk
0:01:40.9]} 24. Qe2 {[%clk 0:00:54.3]} 24... b2 {[%clk 0:01:38.6]} 25. Rd1
{[%clk 0:00:51.2]} 25... a3 {[%clk 0:01:36.2]} 26. Ba2 {[%clk 0:00:51.5]} 26...
Rfd8 {[%clk 0:01:34.8]} 27. Rxd8+ {[%clk 0:00:18.9]} 27... Rxd8 {[%clk
0:01:33.7]} 28. Rd1 {[%clk 0:00:18.7]} 28... Rc8 {[%clk 0:01:21.9]} 29. Ne5
{[%clk 0:00:15.6]} 29... Bxe5 {[%clk 0:01:08.9]} 30. Bxe5 {[%clk 0:00:16.5]}
30... Be4 {[%clk 0:01:09.4]} 31. f3 {[%clk 0:00:12.6]} 31... Bc2 {[%clk
0:01:09]} 32. Rd2 {[%clk 0:00:04.5]} 32... b1=Q+ {[%clk 0:00:51.1]} 33. Bxb1
{[%clk 0:00:04.6]} 33... Qxb1+ {[%clk 0:00:51.7]} 34. Kf2 {[%clk 0:00:04.9]}
34... a2 {[%clk 0:00:51.6]} 35. Qc4 {[%clk 0:00:05.3]} 35... Qb8 {[%clk
0:00:25.5]} 36. Qxc2 {[%clk 0:00:03.2]} 36... Rxc2 {[%clk 0:00:24.9]} 0-1

[Event "Early-Titled-Tuesday-Blitz-March-19-2024"]
[Site "Chess.com"]
[Date "2024.03.19"]
[Round "6"]
[White "MikeSailer"]
[Black "Tol_Tol"]
[Result "1-0"]
[WhiteElo "2135"]
[BlackElo "2321"]
[TimeControl "180+1"]
[EndTime "9:07:02 PDT"]
[Termination "MikeSailer won on time"]

1. d4 {[%clk 0:02:54]} 1... Nf6 {[%clk 0:02:59.9]} 2. Nf3 {[%clk 0:02:42.8]}
2... g6 {[%clk 0:02:55.2]} 3. Bf4 {[%clk 0:02:43]} 3... Bg7 {[%clk 0:02:54.9]}
4. e3 {[%clk 0:02:43.6]} 4... O-O {[%clk 0:02:55.6]} 5. Be2 {[%clk 0:02:42.4]}
5... d6 {[%clk 0:02:56.5]} 6. O-O {[%clk 0:02:42.8]} 6... b6 {[%clk 0:02:57.2]}
7. h3 {[%clk 0:02:42]} 7... c5 {[%clk 0:02:57.7]} 8. c4 {[%clk 0:02:40.8]} 8...
Bf5 {[%clk 0:02:55.3]} 9. Nc3 {[%clk 0:02:41.1]} 9... Ne4 {[%clk 0:02:54.6]} 10.
a4 {[%clk 0:02:39.7]} 10... Nxc3 {[%clk 0:02:54.1]} 11. bxc3 {[%clk 0:02:39.9]}
11... Nc6 {[%clk 0:02:55]} 12. Nd2 {[%clk 0:02:33.7]} 12... Rc8 {[%clk
0:02:52.5]} 13. Nb3 {[%clk 0:02:32.7]} 13... e5 {[%clk 0:02:47.3]} 14. Bg3
{[%clk 0:02:13.3]} 14... Re8 {[%clk 0:02:34.7]} 15. Bf3 {[%clk 0:02:00.7]} 15...
e4 {[%clk 0:02:30.8]} 16. Bg4 {[%clk 0:01:59.1]} 16... Bxg4 {[%clk 0:02:25.3]}
17. hxg4 {[%clk 0:01:50.5]} 17... cxd4 {[%clk 0:02:14.3]} 18. cxd4 {[%clk
0:01:46.1]} 18... d5 {[%clk 0:02:11.5]} 19. c5 {[%clk 0:01:40.9]} 19... Nb4
{[%clk 0:02:04.8]} 20. a5 {[%clk 0:01:30.5]} 20... bxc5 {[%clk 0:02:01.7]} 21.
Nxc5 {[%clk 0:01:29.9]} 21... Rxc5 {[%clk 0:01:58.4]} 22. dxc5 {[%clk
0:01:27.9]} 22... Bxa1 {[%clk 0:01:59.3]} 23. Qxa1 {[%clk 0:01:27.4]} 23... Nd3
{[%clk 0:01:53.1]} 24. Bd6 {[%clk 0:01:24.1]} 24... Qd7 {[%clk 0:01:46.4]} 25.
g5 {[%clk 0:01:14.7]} 25... Qc6 {[%clk 0:01:30.3]} 26. Qd4 {[%clk 0:01:05.2]}
26... Rd8 {[%clk 0:01:17.6]} 27. f3 {[%clk 0:01:00.4]} 27... Rd7 {[%clk
0:01:11.8]} 28. fxe4 {[%clk 0:00:58.6]} 28... dxe4 {[%clk 0:01:11.6]} 29. Rb1
{[%clk 0:00:39]} 29... Rb7 {[%clk 0:00:59.8]} 30. Rxb7 {[%clk 0:00:25.7]} 30...
Qxb7 {[%clk 0:01:00.7]} 31. Qf6 {[%clk 0:00:25.7]} 31... Qc8 {[%clk 0:00:19.6]}
32. c6 {[%clk 0:00:25.5]} 32... Qe8 {[%clk 0:00:02.4]} 33. c7 {[%clk 0:00:25.2]}
1-0

[Event "Early-Titled-Tuesday-Blitz-March-19-2024"]
[Site "Chess.com"]
[Date "2024.03.19"]
[Round "6"]
[White "Alexei_Gubajdullin"]
[Black "Manukyan_Artak"]
[Result "0-1"]
[WhiteElo "2650"]
[BlackElo "2478"]
[TimeControl "180+1"]
[EndTime "9:07:04 PDT"]
[Termination "Manukyan_Artak won on time"]

1. Nf3 {[%clk 0:00:23.4]} 1... g6 {[%clk 0:02:57.5]} 2. g3 {[%clk 0:00:23.5]}
2... Bg7 {[%clk 0:02:58.1]} 3. Bg2 {[%clk 0:00:24]} 3... e5 {[%clk 0:02:58.9]}
4. O-O {[%clk 0:00:24.5]} 4... e4 {[%clk 0:02:59.5]} 5. Ne1 {[%clk 0:00:24.6]}
5... d5 {[%clk 0:03:00.2]} 6. d3 {[%clk 0:00:24.8]} 6... f5 {[%clk 0:03:00.6]}
7. Nd2 {[%clk 0:00:24.7]} 7... Nf6 {[%clk 0:02:57.2]} 8. c4 {[%clk 0:00:24.4]}
8... c6 {[%clk 0:02:54.4]} 9. cxd5 {[%clk 0:00:24.3]} 9... cxd5 {[%clk
0:02:54.6]} 10. dxe4 {[%clk 0:00:25.2]} 10... dxe4 {[%clk 0:02:54.8]} 11. Qb3
{[%clk 0:00:24.8]} 11... Qd5 {[%clk 0:02:49.5]} 12. Nc2 {[%clk 0:00:24.1]} 12...
Be6 {[%clk 0:02:47.8]} 13. Qxd5 {[%clk 0:00:23.4]} 13... Bxd5 {[%clk 0:02:48]}
14. Ne3 {[%clk 0:00:21.5]} 14... Bc6 {[%clk 0:02:43.6]} 15. f3 {[%clk
0:00:21.6]} 15... exf3 {[%clk 0:02:11.1]} 16. exf3 {[%clk 0:00:21.5]} 16... Nbd7
{[%clk 0:02:10.3]} 17. Nec4 {[%clk 0:00:21.2]} 17... O-O {[%clk 0:02:04.5]} 18.
Na5 {[%clk 0:00:21.3]} 18... Bd5 {[%clk 0:02:02]} 19. f4 {[%clk 0:00:21.4]}
19... b6 {[%clk 0:01:57.9]} 20. Nc6 {[%clk 0:00:21.2]} 20... Bxg2 {[%clk
0:01:42.4]} 21. Kxg2 {[%clk 0:00:21.2]} 21... Rfe8 {[%clk 0:01:42.6]} 22. Nf3
{[%clk 0:00:15.5]} 22... Rac8 {[%clk 0:01:37.5]} 23. Nxa7 {[%clk 0:00:13.9]}
23... Rc2+ {[%clk 0:01:36.4]} 24. Rf2 {[%clk 0:00:13.4]} 24... Ree2 {[%clk
0:01:36.5]} 25. Rxe2 {[%clk 0:00:12.6]} 25... Rxe2+ {[%clk 0:01:37.4]} 26. Kf1
{[%clk 0:00:12.5]} 26... Rc2 {[%clk 0:01:37.2]} 27. Ne5 {[%clk 0:00:12.3]} 27...
Nxe5 {[%clk 0:01:32.6]} 28. fxe5 {[%clk 0:00:12.3]} 28... Ng4 {[%clk 0:01:33.2]}
29. h3 {[%clk 0:00:11.2]} 29... Nxe5 {[%clk 0:01:31.6]} 30. Bf4 {[%clk
0:00:10.7]} 30... Nf3 {[%clk 0:01:16.5]} 31. Rd1 {[%clk 0:00:08.8]} 31... Bd4
{[%clk 0:01:15.7]} 32. Rxd4 {[%clk 0:00:06.1]} 32... Nxd4 {[%clk 0:01:15.3]} 33.
Be3 {[%clk 0:00:07]} 33... Nf3 {[%clk 0:01:11.2]} 34. a3 {[%clk 0:00:06.6]}
34... Rxb2 {[%clk 0:01:10.9]} 35. Nc6 {[%clk 0:00:06.9]} 35... Kf7 {[%clk
0:01:03.2]} 36. Nb4 {[%clk 0:00:06.3]} 36... b5 {[%clk 0:01:01.2]} 37. Nd5
{[%clk 0:00:04.9]} 37... Ne5 {[%clk 0:00:57.9]} 38. Bc5 {[%clk 0:00:04.6]} 38...
Nc4 {[%clk 0:00:55.2]} 39. Bb4 {[%clk 0:00:04.3]} 39... g5 {[%clk 0:00:53.7]}
40. Nc7 {[%clk 0:00:04.2]} 40... f4 {[%clk 0:00:41.9]} 41. gxf4 {[%clk
0:00:04.1]} 41... gxf4 {[%clk 0:00:42.8]} 42. Bc5 {[%clk 0:00:03.6]} 42... Ne3+
{[%clk 0:00:39]} 0-1